bitfinex/quotes_BTCUSD_20250213
["timestamp","ask_amount","ask_price","bid_price","bid_amount"]
[1739412075428,0.30082353,98033.0,98032.0,0.00111719]
[1739412078227,0.22432353,98033.0,98032.0,0.00111719]
[1739412078436,0.24464288,98033.0,98032.0,0.00111719]
[1739412078653,0.23458858,98033.0,98032.0,0.00111719]
[1739412080921,0.20400208,98033.0,98032.0,0.00111719]
[1739412081125,0.20400208,98033.0,98032.0,0.00122379]
[1739412084638,0.1849035,98033.0,98032.0,0.00122379]
[1739412085738,0.1849035,98033.0,98030.0,0.00022386]
[1739412085739,0.15524899,98031.0,98030.0,6.5e-07]
[1739412085951,0.16458458,98031.0,98030.0,6.5e-07]
[1739412087025,0.16458458,98031.0,98030.0,0.00300065]
[1739412087228,0.15529099,98004.0,98001.0,0.0485]
[1739412087437,0.15529099,98004.0,98003.0,1.60263585]
[1739412087849,0.15529099,98004.0,98003.0,1.5001322]
[1739412088274,0.17439652,98004.0,98003.0,1.5001322]
[1739412088671,0.18368378,98004.0,98003.0,1.5051322]
[1739412089376,0.18468378,98004.0,98003.0,1.5061322]
[1739412089571,0.19497581,98004.0,98003.0,1.5061322]
[1739412090103,0.19497581,98004.0,98003.0,1.5051322]
[1739412090312,0.19397581,98004.0,98003.0,1.5001322]
[1739412090720,0.19397581,98004.0,98003.0,1.5011322]
[1739412091102,0.19397581,98004.0,98003.0,1.5001322]
[1739412091324,0.18368378,98004.0,98003.0,1.5011322]
[1739412091932,0.18368378,98004.0,98003.0,0.0011322]
[1739412092140,0.18468378,98004.0,98003.0,0.0011322]
[1739412092606,0.18368378,98004.0,98003.0,0.0011322]
[1739412093081,0.18468378,98004.0,98003.0,0.0011322]
[1739412093979,0.20557441,98004.0,98003.0,0.0012388]
[1739412095224,0.20457441,98004.0,98003.0,0.0002388]
[1739412095443,0.20757441,98004.0,98003.0,0.0002388]
[1739412095870,0.20457441,98004.0,98003.0,0.0002388]
[1739412096290,0.20457441,98004.0,98003.0,0.0012388]
[1739412096703,0.20457441,98004.0,98003.0,0.0002388]
[1739412097059,0.20557441,98004.0,98003.0,0.0012388]
[1739412097283,0.20457441,98004.0,98003.0,0.0012388]
[1739412099310,0.20457441,98004.0,98003.0,0.0002388]
[1739412099552,0.20757441,98004.0,98003.0,0.0002388]
[1739412100015,0.20457441,98004.0,98003.0,0.0002388]
[1739412100240,0.20457441,98004.0,98003.0,0.0012388]
[1739412101284,0.20457441,98004.0,98003.0,0.0032388]
[1739412101504,0.20457441,98004.0,98003.0,0.0012388]
[1739412101933,0.20457441,98004.0,98003.0,0.0002388]
[1739412102344,0.20557441,98004.0,98003.0,0.0002388]
[1739412102703,0.20457441,98004.0,98003.0,0.0002388]
[1739412103134,0.20557441,98004.0,98003.0,0.0022388]
[1739412103337,0.20557441,98004.0,98003.0,0.0032388]
[1739412103710,0.20557441,98004.0,98003.0,0.0022388]
[1739412103923,0.20557441,98004.0,98003.0,0.0042388]
[1739412104124,0.18646888,98004.0,98003.0,0.0042388]
[1739412107704,0.20552968,98004.0,98003.0,0.0042388]
[1739412109264,0.20552968,98004.0,98003.0,0.0812388]
[1739412109687,0.18423189,98004.0,98003.0,0.0812388]
[1739412110030,0.16334126,98004.0,98003.0,0.33374245]
[1739412110239,0.16334126,98004.0,98003.0,0.35674245]
[1739412110435,0.01028726,98004.0,98003.0,0.35674245]
[1739412110645,0.16334126,98004.0,98003.0,1.85674245]
[1739412111296,0.16234126,98004.0,98003.0,1.85274245]
[1739412111700,0.16234126,98004.0,98003.0,1.85474245]
[1739412111701,0.16334126,98004.0,98003.0,1.85474245]
[1739412112669,0.16334126,98004.0,98003.0,1.85774245]
[1739412114666,0.18243786,98004.0,98003.0,1.85774245]
[1739412115522,0.18243786,98004.0,98003.0,0.35774245]
[1739412115921,0.18243786,98004.0,98003.0,1.85774245]
[1739412116135,0.16334126,98004.0,98003.0,1.85774245]
[1739412118844,0.18244712,98004.0,98003.0,1.85774245]
[1739412120690,0.16334126,98004.0,98003.0,1.85774245]
[1739412121877,0.16557825,98004.0,98003.0,0.1552388]
[1739412123057,0.16557825,98004.0,98003.0,0.1522388]
[1739412123235,0.18468301,98004.0,98003.0,0.1542388]
[1739412123732,0.18368301,98004.0,98003.0,0.1522388]
[1739412123941,0.18768301,98004.0,98003.0,0.1522388]
[1739412124171,0.18544602,98004.0,98003.0,0.27774245]
[1739412124383,0.18144602,98004.0,98003.0,0.27774245]
[1739412124589,0.16234126,98004.0,98003.0,0.27774245]
[1739412124804,0.16334126,98004.0,98003.0,0.27974245]
[1739412125022,0.16334126,98004.0,98003.0,1.77974245]
[1739412125203,0.16334126,98004.0,98003.0,1.77774245]
[1739412125204,0.16234126,98004.0,98003.0,1.77774245]
[1739412125660,0.01028726,98004.0,98003.0,1.85894245]
[1739412125875,0.154054,98004.0,98003.0,1.90774245]
[1739412126744,0.16334521,98004.0,98003.0,1.90774245]
[1739412127092,0.16234521,98004.0,98003.0,1.85694245]
[1739412127299,0.16234521,98004.0,98003.0,1.77974245]
[1739412127539,0.16234521,98004.0,98003.0,1.78174245]
[1739412127540,0.16334521,98004.0,98003.0,1.78174245]
[1739412128309,0.16334521,98004.0,98003.0,0.28174245]
[1739412128958,0.16334521,98004.0,98003.0,1.78174245]
[1739412131488,0.16334521,98004.0,98003.0,0.28174245]
[1739412131664,0.18244748,98004.0,98003.0,0.28174245]
[1739412132686,0.18244748,98004.0,98003.0,0.27774245]
[1739412132891,0.18368447,98004.0,98003.0,0.27774245]
[1739412133090,0.18368447,98004.0,98003.0,0.28074245]
[1739412133669,0.26108447,98004.0,98003.0,8e-07]
[1739412133888,0.15531299,97990.0,97968.0,0.0772]
[1739412134092,0.153101,97974.0,97965.0,0.0481]
[1739412134312,0.153101,97974.0,97973.0,0.10316842]
[1739412134488,0.16237567,97974.0,97973.0,0.25316842]
[1739412134994,0.18147794,97974.0,97973.0,0.25316842]
[1739412135228,0.18371493,97974.0,97973.0,0.25316842]
[1739412135420,0.18371493,97974.0,97973.0,0.10316842]
[1739412135866,0.18371493,97974.0,97973.0,0.10716842]
[1739412136316,0.18371493,97974.0,97973.0,0.00466477]
[1739412136526,0.25901493,97974.0,97973.0,7.7e-07]
[1739412136851,0.26001493,97974.0,97973.0,7.7e-07]
[1739412137062,0.40007223,97974.0,97973.0,7.7e-07]
[1739412137516,0.153115,97965.0,97953.0,0.09122527]
[1739412137746,0.15535199,97965.0,97953.0,0.09122527]
[1739412137949,0.16457795,97965.0,97953.0,0.09122527]
[1739412138175,0.16457795,97965.0,97954.0,1.5]
[1739412138828,0.16757795,97965.0,97954.0,1.5]
[1739412139469,0.16757795,97965.0,97947.0,0.173]
[1739412139862,0.16757795,97965.0,97964.0,1.6528266]
[1739412140114,0.17745426,97965.0,97964.0,1.6528266]
[1739412140324,0.18545426,97965.0,97964.0,1.6528266]
[1739412140744,0.17745426,97965.0,97964.0,1.6528266]
[1739412140954,0.18345426,97965.0,97964.0,1.6528266]
[1739412141156,0.18045426,97965.0,97964.0,1.6528266]
[1739412141368,0.18245426,97965.0,97964.0,1.6528266]
[1739412141589,0.18045426,97965.0,97964.0,1.6528266]
[1739412142078,0.18245426,97965.0,97964.0,1.6528266]
[1739412142504,0.20315873,97965.0,97964.0,1.6528266]
[1739412142724,0.20115873,97965.0,97964.0,1.6528266]
[1739412143132,0.24495873,97965.0,97964.0,1.6528266]
[1739412143561,0.25195873,97965.0,97964.0,1.6528266]
[1739412143973,0.24495873,97965.0,97964.0,1.6528266]
[1739412144207,0.25295873,97965.0,97964.0,1.6528266]
[1739412144616,0.25918469,97965.0,97964.0,1.6528266]
[1739412144819,0.21438469,97965.0,97964.0,1.6528266]
[1739412145203,0.20515873,97965.0,97964.0,1.6528266]
[1739412146730,0.20215873,97965.0,97964.0,1.6528266]
[1739412148673,0.18305646,97965.0,97964.0,1.6528266]
[1739412150377,0.18305646,97965.0,97964.0,0.0001066]
[1739412150843,0.19358012,97965.0,97964.0,0.0001066]
[1739412153264,0.21258169,97965.0,97964.0,0.0001066]
[1739412154912,0.2103447,97965.0,97964.0,0.0001066]
[1739412155094,0.21258169,97965.0,97964.0,0.0001066]
[1739412155728,0.21258169,97965.0,97964.0,0.27561025]
[1739412155729,0.160115,97965.0,97964.0,0.27561025]
[1739412155933,0.17063866,97965.0,97964.0,1.77561025]
[1739412156339,0.160115,97965.0,97964.0,1.77561025]
[1739412156762,0.155115,97965.0,97964.0,1.77561025]
[1739412156988,0.153115,97965.0,97964.0,1.77561025]
[1739412157387,0.153115,97965.0,97964.0,1.77661025]
[1739412158175,0.153115,97965.0,97964.0,1.77861025]
[1739412160908,0.153115,97965.0,97964.0,0.27861025]
[1739412161218,0.16362863,97965.0,97964.0,0.27861025]
[1739412161423,0.16362863,97965.0,97964.0,1.77861025]
[1739412161618,0.16362863,97965.0,97964.0,0.27861025]
[1739412161851,0.16587209,97965.0,97964.0,0.25561025]
[1739412162672,0.18494808,97965.0,97964.0,0.25561025]
[1739412165530,0.18494808,97965.0,97964.0,0.1531066]
[1739412167223,0.18494808,97965.0,97964.0,0.1521066]
[1739412167628,0.18594808,97965.0,97964.0,0.1521066]
[1739412167970,0.18594808,97965.0,97964.0,0.1501066]
[1739412168157,0.18994808,97965.0,97964.0,0.1501066]
[1739412168425,0.18794808,97965.0,97964.0,0.1501066]
[1739412168636,0.18494808,97965.0,97964.0,0.1513716]
[1739412168770,0.18594808,97965.0,97964.0,0.1513716]
[1739412168967,0.18794808,97965.0,97964.0,0.1513716]
[1739412171424,0.18794808,97965.0,97964.0,1.6513716]
[1739412177156,0.18794808,97965.0,97964.0,0.0013716]
[1739412177334,0.23354808,97965.0,97964.0,0.0013716]
[1739412178537,0.23338476,97965.0,97964.0,0.0013716]
[1739412180922,0.23038476,97965.0,97964.0,0.0013716]
[1739412181126,0.23238476,97965.0,97964.0,0.0013716]
[1739412181349,0.23338476,97965.0,97964.0,0.0013716]
[1739412181828,0.18778476,97965.0,97964.0,0.0013716]
[1739412182843,0.18778476,97965.0,97964.0,0.10387525]
[1739412184118,0.18554777,97965.0,97964.0,0.10387525]
[1739412185707,0.03259609,97965.0,97964.0,0.37902255]
[1739412185907,0.1666351,97965.0,97964.0,0.45872255]
[1739412186112,0.1656351,97965.0,97964.0,0.45872255]
[1739412186534,0.1666351,97965.0,97964.0,0.4663582]
[1739412186735,0.1656351,97965.0,97964.0,0.4663582]
[1739412186939,0.16385897,97965.0,97964.0,0.4663582]
[1739412187412,0.16585897,97965.0,97964.0,0.4663582]
[1739412188017,0.16385897,97965.0,97964.0,0.4663582]
[1739412188436,0.16385897,97965.0,97964.0,0.4673582]
[1739412188570,0.18298575,97965.0,97964.0,0.4673582]
[1739412188779,0.18522274,97965.0,97964.0,0.3646582]
[1739412189160,0.18522274,97965.0,97964.0,0.16000725]
[1739412189366,0.18522274,97965.0,97964.0,0.1523716]
[1739412190394,0.18522274,97965.0,97964.0,0.1513716]
[1739412190755,0.19422274,97965.0,97964.0,0.1513716]
[1739412191189,0.18922274,97965.0,97964.0,0.1513716]
[1739412191542,0.18922274,97965.0,97964.0,0.1523716]
[1739412192677,0.18522274,97965.0,97964.0,0.1523716]
[1739412195621,0.16609596,97965.0,97964.0,0.1523716]
[1739412196495,0.16609596,97965.0,97964.0,0.1513716]
[1739412196698,0.16709596,97965.0,97964.0,0.1513716]
[1739412196899,0.17009596,97965.0,97964.0,0.1513716]
[1739412197102,0.17009596,97965.0,97964.0,0.0013716]
[1739412197509,0.25179596,97965.0,97964.0,0.0013716]
[1739412197935,0.27092984,97965.0,97964.0,0.0013716]
[1739412199043,0.18922984,97965.0,97964.0,0.0013716]
[1739412200183,0.17009596,97965.0,97964.0,0.0013716]
[1739412203297,0.18922361,97965.0,97964.0,0.0013716]
[1739412204966,0.17009596,97965.0,97964.0,0.0013716]
[1739412206764,0.18921969,97965.0,97964.0,0.0013716]
[1739412208521,0.17009596,97965.0,97964.0,0.0013716]
[1739412212758,0.16709596,97965.0,97964.0,0.0013716]
[1739412212966,0.17509596,97965.0,97964.0,0.0013716]
[1739412213429,0.17809596,97965.0,97964.0,0.0013716]
[1739412214448,0.17809596,97965.0,97964.0,6e-07]
[1739412216786,0.25459596,97965.0,97964.0,6e-07]
[1739412219515,0.25459596,97965.0,97951.0,0.0002]
[1739412219516,0.15537299,97952.0,97951.0,0.0002]
[1739412220011,0.16588923,97952.0,97951.0,0.0002]
[1739412221479,0.16588923,97952.0,97951.0,0.0012]
[1739412222414,0.17633926,97952.0,97951.0,0.0012]
[1739412225891,0.16582302,97952.0,97951.0,0.0012]
[1739412228751,0.17633926,97952.0,97951.0,0.0012]
[1739412229164,0.16588923,97952.0,97951.0,0.10370365]
[1739412229369,0.16588923,97952.0,97951.0,0.18590365]
[1739412229370,0.18616281,97952.0,97951.0,0.18590365]
[1739412229818,0.18616281,97952.0,97951.0,1.68590365]
[1739412230141,0.0103219,97962.0,97952.0,0.15]
[1739412230346,0.153131,97955.0,97954.0,0.15]
[1739412230566,0.153131,97955.0,97954.0,0.25250365]
[1739412231194,0.153131,97955.0,97954.0,0.26014726]
[1739412232005,0.154131,97955.0,97954.0,0.26114726]
[1739412232745,0.154131,97955.0,97954.0,0.26014726]
[1739412233149,0.154131,97955.0,97954.0,0.26114726]
[1739412233365,0.154131,97955.0,97954.0,0.26014726]
[1739412233562,0.1636518,97955.0,97954.0,0.26314726]
[1739412233788,0.1636518,97955.0,97954.0,1.76314726]
[1739412234011,0.1636518,97955.0,97954.0,1.76514726]
[1739412234218,0.153131,97955.0,97954.0,1.75750365]
[1739412234865,0.153131,97955.0,97954.0,1.75550365]
[1739412235350,0.154131,97955.0,97954.0,1.75950365]
[1739412235778,0.154131,97955.0,97954.0,1.76714726]
[1739412238703,0.15377368,97955.0,97954.0,1.76714726]
[1739412238922,0.15377368,97955.0,97954.0,0.25950365]
[1739412239265,0.16429555,97955.0,97954.0,0.25950365]
[1739412239472,0.16429555,97955.0,97954.0,1.75950365]
[1739412239684,0.15377368,97955.0,97954.0,1.75950365]
[1739412242387,0.15377368,97955.0,97954.0,0.25950365]
[1739412242720,0.16429555,97955.0,97954.0,0.25950365]
[1739412242925,0.01152187,97955.0,97954.0,2.11459305]
[1739412243343,0.001,97955.0,97954.0,1.96146005]
[1739412244136,0.001,97955.0,97954.0,2.11459305]
[1739412244338,0.001,97955.0,97954.0,2.44159305]
[1739412244715,0.001,97955.0,97954.0,2.44922113]
[1739412244916,0.001,97955.0,97954.0,2.29608813]
[1739412246222,0.001,97955.0,97954.0,2.44888813]
[1739412246430,0.001,97955.0,97954.0,2.60202113]
[1739412246840,0.001,97955.0,97954.0,2.64822113]
[1739412248071,0.001,97955.0,97954.0,2.64832773]
[1739412248490,0.00122387,97955.0,97954.0,2.64832773]
[1739412249394,0.00122387,97955.0,97954.0,2.64532773]
[1739412249618,0.00022387,97955.0,97954.0,2.64132773]
[1739412249828,0.00222387,97955.0,97954.0,2.65432773]
[1739412250211,0.00122387,97955.0,97954.0,2.49419473]
[1739412250622,0.00222387,97955.0,97954.0,2.65932773]
[1739412252761,0.00222387,97955.0,97954.0,2.50619473]
[1739412254631,0.00222387,97955.0,97954.0,2.65932773]
[1739412256089,0.00222387,97955.0,97954.0,2.50619473]
[1739412258161,0.00222387,97955.0,97954.0,2.65932773]
[1739412259248,0.00222387,97955.0,97954.0,2.95932773]
[1739412259458,0.00222387,97955.0,97954.0,2.97709074]
[1739412259674,0.00222387,97955.0,97954.0,3.00881185]
[1739412259891,0.00122387,97955.0,97954.0,3.54331185]
[1739412260933,0.00122387,97955.0,97954.0,3.53331185]
[1739412261142,0.00122387,97955.0,97954.0,3.54331185]
[1739412261345,0.00122387,97955.0,97954.0,3.54931185]
[1739412261808,0.00022387,97955.0,97954.0,3.54231185]
[1739412262018,0.00022387,97955.0,97954.0,3.53731185]
[1739412262198,0.01522387,97955.0,97954.0,3.53831185]
[1739412262622,0.01522387,97955.0,97954.0,3.38517885]
[1739412262832,0.01522387,97955.0,97954.0,3.38617885]
[1739412263349,0.01522387,97955.0,97954.0,3.35445774]
[1739412263696,0.01522387,97955.0,97954.0,3.38617842]
[1739412264257,0.01522387,97955.0,97954.0,3.35445774]
[1739412264615,0.01522387,97955.0,97954.0,3.34445774]
[1739412264897,0.01522387,97955.0,97954.0,3.35445774]
[1739412266700,0.01522387,97955.0,97954.0,3.34669473]
[1739412266919,0.01522387,97955.0,97954.0,3.35445774]
[1739412267889,0.01522387,97955.0,97954.0,3.38617991]
[1739412269037,0.01522387,97955.0,97954.0,3.53931291]
[1739412277460,0.00022387,97964.0,97963.0,0.54338201]
[1739412277672,0.00022387,97964.0,97963.0,2.99309691]
[1739412277876,0.00022387,97964.0,97963.0,3.02481908]
[1739412278107,0.00022387,97964.0,97963.0,5.39831908]
[1739412279333,0.00722387,97964.0,97963.0,5.39931908]
[1739412279958,0.00722387,97964.0,97963.0,5.40694716]
[1739412280161,0.02122387,97964.0,97963.0,5.40794716]
[1739412280369,0.00022387,97965.0,97964.0,0.64388001]
[1739412280568,0.00022387,97965.0,97964.0,0.95591083]
[1739412281004,0.00022387,97965.0,97964.0,2.45591083]
[1739412281625,0.00522387,97965.0,97964.0,2.45691083]
[1739412282049,0.01222387,97965.0,97964.0,2.45791083]
[1739412282258,0.00022387,97973.0,97972.0,0.04076301]
[1739412282500,0.00022387,97973.0,97972.0,0.28326666]
[1739412282910,0.00022387,97973.0,97972.0,1.79326666]
[1739412283344,0.00022387,97973.0,97972.0,1.78550365]
[1739412283573,0.00122387,97973.0,97972.0,2.96000365]
[1739412283786,0.00122387,97973.0,97972.0,2.96776666]
[1739412284001,0.00122387,97973.0,97972.0,2.96876666]
[1739412284205,0.00122387,97973.0,97972.0,2.97639474]
[1739412284782,0.00122387,97973.0,97972.0,3.12915474]
[1739412286325,0.00122387,97973.0,97972.0,3.12139173]
[1739412286541,0.00122387,97973.0,97972.0,2.66139173]
[1739412286724,0.15432687,97973.0,97972.0,2.66139173]
[1739412286932,0.15432687,97973.0,97972.0,2.81139173]
[1739412287146,0.00122387,97973.0,97972.0,2.81139173]
[1739412287677,0.15432687,97973.0,97972.0,2.81139173]
[1739412288093,0.16362095,97973.0,97972.0,2.81139173]
[1739412288520,0.15432687,97973.0,97972.0,2.81139173]
[1739412288736,0.00122387,97973.0,97972.0,2.81139173]
[1739412289366,0.15432687,97973.0,97972.0,2.81139173]
[1739412289550,0.15432687,97973.0,97972.0,2.26489173]
[1739412289789,0.16362095,97973.0,97972.0,2.26489173]
[1739412290183,0.15432687,97973.0,97972.0,2.26489173]
[1739412290592,0.16362095,97973.0,97972.0,2.26489173]
[1739412290890,0.16362095,97973.0,97972.0,2.11213173]
[1739412291162,0.16362095,97973.0,97972.0,2.26489173]
[1739412292467,0.01051795,97973.0,97972.0,2.26489173]
[1739412292668,0.00022387,97973.0,97972.0,2.26389173]
[1739412292876,0.00022387,97973.0,97972.0,2.26289173]
[1739412293088,0.00022387,97973.0,97972.0,2.26389173]
[1739412293304,0.00422387,97973.0,97972.0,2.26489173]
[1739412295309,0.15732687,97973.0,97972.0,2.26489173]
[1739412295516,0.00422387,97973.0,97972.0,2.26489173]
[1739412301847,0.00422387,97973.0,97972.0,2.26389173]
[1739412302042,0.00022387,97973.0,97972.0,2.29564372]
[1739412302295,0.01522387,97973.0,97972.0,2.29664372]
[1739412302703,0.00422387,97973.0,97972.0,2.29564372]
[1739412302929,0.01522387,97973.0,97972.0,2.29664372]
[1739412303228,0.01522387,97973.0,97972.0,2.26489173]
[1739412303434,0.00422387,97973.0,97972.0,2.26389173]
[1739412303576,0.00022387,97973.0,97972.0,2.26289173]
[1739412303797,0.01522387,97973.0,97972.0,2.24189173]
[1739412304003,0.16832687,97973.0,97972.0,2.09189173]
[1739412304201,0.16432687,97973.0,97972.0,2.24089173]
[1739412304396,0.17361696,97973.0,97972.0,2.24089173]
[1739412304624,0.17761696,97973.0,97972.0,2.24189173]
[1739412304795,0.17761696,97973.0,97972.0,2.24089173]
[1739412305022,0.16661696,97973.0,97972.0,2.23989173]
[1739412305220,0.16661696,97973.0,97972.0,2.24689173]
[1739412305425,0.17761696,97973.0,97972.0,2.24789173]
[1739412305884,0.16661696,97973.0,97972.0,2.20676526]
[1739412306310,0.24791696,97973.0,97972.0,2.22176526]
[1739412307383,0.24791696,97973.0,97972.0,1.74200526]
[1739412308220,0.24691696,97973.0,97972.0,1.72700526]
[1739412308435,0.24691696,97973.0,97972.0,1.74200526]
[1739412308645,0.24391696,97973.0,97972.0,1.72737718]
[1739412308870,0.24391696,97973.0,97972.0,0.20650718]
[1739412309080,0.29165395,97973.0,97972.0,0.069524]
[1739412309286,0.283114,97966.0,97965.0,1.5001065]
[1739412309442,0.29238106,97966.0,97965.0,0.10250365]
[1739412310446,0.29238106,97966.0,97965.0,1.60750365]
[1739412310447,0.29461805,97966.0,97965.0,1.60750365]
[1739412310866,0.29461805,97966.0,97965.0,1.60250365]
[1739412311073,0.29238106,97966.0,97965.0,1.60250365]
[1739412311505,0.29338106,97966.0,97965.0,1.76750365]
[1739412311708,0.29338106,97966.0,97965.0,1.77050365]
[1739412311919,0.29238106,97966.0,97965.0,1.75550365]
[1739412312352,0.29338106,97966.0,97965.0,1.76750365]
[1739412312553,0.29561805,97966.0,97965.0,1.76750365]
[1739412312766,0.29461805,97966.0,97965.0,1.75550365]
[1739412312970,0.29461805,97966.0,97965.0,1.77050365]
[1739412313171,0.29561805,97966.0,97965.0,1.76750365]
[1739412313604,0.29561805,97966.0,97965.0,1.77250365]
[1739412313806,0.29561805,97966.0,97965.0,1.76750365]
[1739412314004,0.29561805,97966.0,97965.0,1.77050365]
[1739412314407,0.29461805,97966.0,97965.0,1.75250365]
[1739412314630,0.29461805,97966.0,97965.0,1.75750365]
[1739412314834,0.29561805,97966.0,97965.0,1.76950365]
[1739412315286,0.29461805,97966.0,97965.0,1.75750365]
[1739412315641,0.29561805,97966.0,97965.0,1.77250365]
[1739412315824,0.29561805,97966.0,97965.0,1.67]
[1739412316226,0.29461805,97966.0,97965.0,1.65]
[1739412316443,0.29561805,97966.0,97965.0,1.665]
[1739412316872,0.29561805,97966.0,97965.0,1.662]
[1739412317052,0.29561805,97966.0,97965.0,1.665]
[1739412317686,0.29461805,97966.0,97965.0,1.6531065]
[1739412318106,0.29561805,97966.0,97965.0,1.6631065]
[1739412318526,0.29461805,97966.0,97965.0,1.6531065]
[1739412318963,0.29561805,97966.0,97965.0,0.1651065]
[1739412319383,0.29461805,97966.0,97965.0,0.1501065]
[1739412319593,0.31470076,97966.0,97965.0,1.6631065]
[1739412319797,0.31470076,97966.0,97965.0,0.1631065]
[1739412320004,0.31470076,97966.0,97965.0,0.0101065]
[1739412320218,0.31470076,97966.0,97965.0,0.0131065]
[1739412320840,0.31370076,97966.0,97965.0,0.0061065]
[1739412321045,0.28265399,97964.0,97963.0,0.09651228]
[1739412321456,0.29187844,97964.0,97963.0,0.09651228]
[1739412322143,0.31096115,97964.0,97963.0,0.09651228]
[1739412322707,0.31196115,97964.0,97963.0,0.10551228]
[1739412324013,0.3323041,97964.0,97963.0,0.10551228]
[1739412325440,0.3323041,97964.0,97963.0,0.009]
[1739412327158,0.31322139,97964.0,97963.0,0.009]
[1739412329317,0.31322139,97964.0,97963.0,0.0091065]
[1739412334336,0.33231458,97964.0,97963.0,0.0091065]
[1739412339036,0.31322139,97964.0,97963.0,0.0091065]
[1739412339889,0.31322139,97964.0,97963.0,5e-07]
[1739412340733,0.31222139,97964.0,97963.0,5e-07]
[1739412340927,0.32022139,97964.0,97963.0,5e-07]
[1739412341538,0.3393306,97964.0,97963.0,5e-07]
[1739412342384,0.33955447,97964.0,97963.0,5e-07]
[1739412343133,0.33155447,97964.0,97963.0,5e-07]
[1739412343542,0.33755447,97964.0,97963.0,5e-07]
[1739412344329,0.31844526,97964.0,97963.0,5e-07]
[1739412351709,0.31620827,97964.0,97963.0,5e-07]
[1739412351934,0.23954526,97964.0,97963.0,5e-07]
[1739412352474,0.19114526,97964.0,97963.0,5e-07]
[1739412353285,0.18814526,97964.0,97963.0,5e-07]
[1739412353482,0.18814526,97964.0,97963.0,0.0010005]
[1739412353688,0.18514526,97964.0,97963.0,0.0010005]
[1739412354349,0.18614526,97964.0,97963.0,0.0010005]
[1739412355080,0.18390827,97964.0,97963.0,0.0010005]
[1739412356045,0.18614526,97964.0,97963.0,0.0010005]
[1739412356251,0.18390827,97964.0,97963.0,0.0010005]
[1739412357841,0.18614526,97964.0,97963.0,0.0010005]
[1739412358293,0.18390827,97964.0,97963.0,0.0010005]
[1739412358519,0.18614526,97964.0,97963.0,0.0010005]
[1739412365318,0.153129,97956.0,97955.0,0.15]
[1739412365681,0.16245731,97956.0,97955.0,0.15]
[1739412366501,0.16345731,97956.0,97955.0,0.155]
[1739412366912,0.16345731,97956.0,97955.0,0.005]
[1739412367470,0.16345731,97956.0,97955.0,0.006]
[1739412368687,0.1656943,97956.0,97955.0,0.006]
[1739412368891,0.1656943,97956.0,97955.0,1.656]
[1739412370790,0.18480291,97956.0,97955.0,1.656]
[1739412373687,0.1656943,97956.0,97955.0,1.656]
[1739412376177,0.1656943,97956.0,97955.0,0.006]
[1739412376380,0.1656943,97956.0,97955.0,0.0061066]
[1739412377050,0.15538399,97945.0,97944.0,0.15]
[1739412377468,0.16481688,97945.0,97944.0,0.15]
[1739412378536,0.16481688,97945.0,97944.0,0.152]
[1739412378945,0.16581688,97945.0,97944.0,0.159]
[1739412381119,0.16581688,97945.0,97944.0,1.659]
[1739412381319,0.15638399,97945.0,97944.0,1.659]
[1739412381543,0.15638399,97945.0,97944.0,0.159]
[1739412381762,0.1658158,97945.0,97944.0,0.159]
[1739412381917,0.1658158,97945.0,97944.0,1.659]
[1739412382118,0.15638399,97945.0,97944.0,1.659]
[1739412382588,0.15638399,97945.0,97944.0,0.009]
[1739412382791,0.15538499,97944.0,97943.0,0.09204407]
[1739412383291,0.1648161,97944.0,97943.0,0.09204407]
[1739412384116,0.16486001,97944.0,97943.0,0.09404407]
[1739412384317,0.18397755,97944.0,97943.0,0.09404407]
[1739412384862,0.18497755,97944.0,97943.0,0.09604407]
[1739412388227,0.18497755,97944.0,97943.0,0.09615067]
[1739412389188,0.16586001,97944.0,97943.0,0.09615067]
[1739412389388,0.16586001,97944.0,97943.0,0.0041066]
[1739412399972,0.16608388,97944.0,97943.0,0.0041066]
[1739412400818,0.16384689,97944.0,97943.0,0.20877635]
[1739412401510,0.16384689,97944.0,97943.0,1.70877635]
[1739412401957,0.16384689,97944.0,97943.0,0.20877635]
[1739412402603,0.01069889,97944.0,97943.0,0.35877635]
[1739412403136,0.01069889,97944.0,97943.0,0.36642482]
[1739412403491,0.00126778,97944.0,97943.0,0.36642482]
[1739412403923,0.15441578,97944.0,97943.0,0.36642482]
[1739412404128,0.16393657,97944.0,97943.0,0.36642482]
[1739412404759,0.16393657,97944.0,97943.0,0.35877635]
[1739412405747,0.16393657,97944.0,97943.0,1.85877635]
[1739412407069,0.16393657,97944.0,97943.0,1.86642164]
[1739412408981,0.16393657,97944.0,97943.0,0.36642164]
[1739412409531,0.16393657,97944.0,97943.0,1.86642164]
[1739412411518,0.16393657,97944.0,97943.0,1.85877635]
[1739412416492,0.16617356,97944.0,97943.0,1.7562727]
[1739412416710,0.16617356,97944.0,97943.0,1.5041066]
[1739412417431,0.16517356,97944.0,97943.0,1.5001066]
[1739412417638,0.16617356,97944.0,97943.0,1.5021066]
[1739412417834,0.16717356,97944.0,97943.0,1.5021066]
[1739412418861,0.16617356,97944.0,97943.0,1.5001066]
[1739412419045,0.16617356,97944.0,97943.0,1.5021066]
[1739412419586,0.16517356,97944.0,97943.0,1.5001066]
[1739412419784,0.16517356,97944.0,97943.0,1.5021066]
[1739412419934,0.16517356,97944.0,97943.0,1.5031066]
[1739412422587,0.16517356,97944.0,97943.0,0.0031066]
[1739412423140,0.16517356,97944.0,97943.0,0.0011066]
[1739412423542,0.16517356,97944.0,97943.0,0.0031066]
[1739412423948,0.16517356,97944.0,97943.0,0.0021066]
[1739412424910,0.16517356,97944.0,97943.0,0.0001066]
[1739412425085,0.16517356,97944.0,97943.0,0.0021066]
[1739412425555,0.16517356,97944.0,97943.0,0.0001066]
[1739412425974,0.16517356,97944.0,97943.0,0.0021066]
[1739412426444,0.16517356,97944.0,97943.0,0.0011066]
[1739412427218,0.16617356,97944.0,97943.0,0.0031066]
[1739412431944,0.153161,97936.0,97935.0,1.65]
[1739412432148,0.153161,97936.0,97935.0,1.75250365]
[1739412432348,0.15539799,97936.0,97935.0,1.75250365]
[1739412432713,0.16492332,97936.0,97935.0,1.75250365]
[1739412433502,0.16592332,97936.0,97935.0,1.75750365]
[1739412433811,0.15639799,97936.0,97935.0,1.75450365]
[1739412434428,0.16660495,97936.0,97935.0,1.75461025]
[1739412434610,0.16660495,97936.0,97935.0,1.75861025]
[1739412435376,0.16660495,97936.0,97935.0,0.25861025]
[1739412435564,0.17613108,97936.0,97935.0,0.25861025]
[1739412435761,0.17513108,97936.0,97935.0,1.75261025]
[1739412435987,0.16560495,97936.0,97935.0,1.75261025]
[1739412436276,0.16660495,97936.0,97935.0,1.75461025]
[1739412436526,0.16660495,97936.0,97935.0,1.75261025]
[1739412436770,0.18473122,97936.0,97935.0,1.75361025]
[1739412437033,0.18573122,97936.0,97935.0,1.75361025]
[1739412437273,0.18573122,97936.0,97935.0,1.75261025]
[1739412437484,0.18573122,97936.0,97935.0,1.75361025]
[1739412438324,0.18473122,97936.0,97935.0,1.75361025]